fUSD/lending_fUSD_20250629
["ID","MTS","AMOUNT","RATE_DAILY","PERIOD"]
[368484922,1751190675790,-490.0,0.00028219,3]
[368484923,1751190675800,-959.78,0.00028219,3]
[368484924,1751190675809,-528.19,0.00028219,3]
[368484925,1751190675820,-490.0,0.00028219,3]
[368484926,1751190675830,-490.0,0.00028219,3]
[368484927,1751190675839,-490.0,0.00028219,3]
[368484928,1751190675848,-215.73,0.00028219,3]
[368484929,1751190675858,-480.33,0.00028219,3]
[368484930,1751190675868,-1065.99,0.00028219,3]
[368484931,1751190675878,-490.0,0.00028219,3]
[368484932,1751190675887,-766.16,0.00028219,3]
[368484933,1751190675897,-490.0,0.00028219,3]
[368484934,1751190675907,-1177.8,0.00028219,3]
[368484935,1751190675917,-490.0,0.00028219,3]
[368484936,1751190675928,-1454.99,0.00028219,3]
[368484937,1751190675938,-490.0,0.00028219,3]
[368484938,1751190675947,-490.0,0.00028219,3]
[368484939,1751190675958,-1049.98,0.00028219,3]
[368484940,1751190675968,-921.89,0.00028219,3]
[368484941,1751190675978,-490.0,0.00028219,3]
[368484942,1751190675988,-603.29,0.00028219,3]
[368484943,1751190675998,-490.0,0.00028219,3]
[368484944,1751190676008,-490.0,0.00028219,3]
[368484945,1751190676018,-490.0,0.00028219,3]
[368484946,1751190676029,-1101.22,0.00028219,3]
[368484947,1751190676038,-490.0,0.00028219,3]
[368484948,1751190676048,-490.0,0.00028219,3]
[368484949,1751190676058,-555.36,0.00028219,3]
[368484950,1751190676068,-490.0,0.00028219,3]
[368484951,1751190676078,-1690.83,0.00028219,3]
[368484952,1751190676088,-490.0,0.00028219,3]
[368484953,1751190676098,-608.46,0.00028219,3]
[368484954,1751190676108,-494.25,0.00028219,3]
[368484955,1751190676119,-916.39,0.00028219,3]
[368484956,1751190676129,-698.3,0.00028219,3]
[368484957,1751190676139,-573.71,0.00028219,3]
[368484958,1751190676149,-18048.03,0.00028219,3]
[368484959,1751190676158,-490.0,0.00028219,3]
[368484960,1751190676168,-1394.52,0.00028219,3]
[368484961,1751190676178,-490.0,0.00028219,3]
[368484962,1751190676187,-841.15,0.00028219,3]
[368484963,1751190676197,-1033.94,0.00028219,3]
[368484964,1751190676207,-490.63629739,0.00028219,3]
[368484965,1751190676216,-490.0,0.00028219,3]
[368484966,1751190676225,-353.22729944,0.00028219,3]
[368484967,1751190676235,-814.68,0.00028219,3]
[368484968,1751190676245,-860.32,0.00028219,3]
[368484969,1751190676255,-994.63,0.00028219,3]
[368484970,1751190676265,-817.07,0.00028219,3]
[368484971,1751190676275,-490.0,0.00028219,3]
[368484972,1751190676285,-490.0,0.00028219,3]
[368484973,1751190676294,-490.0,0.00028219,3]
[368484974,1751190676304,-1083.78,0.00028219,3]
[368484975,1751190676313,-490.0,0.00028219,3]
[368484976,1751190676323,-895.73,0.00028219,3]
[368484977,1751190676336,-490.0,0.00028219,3]
[368484978,1751190676346,-1619.71,0.00028219,3]
[368484979,1751190676356,-2039.79,0.00028219,3]
[368484980,1751190676365,-490.0,0.00028219,3]
[368484981,1751190676375,-490.0,0.00028219,3]
[368484982,1751190676384,-522.56,0.00028219,3]
[368484983,1751190676394,-490.0,0.00028219,3]
[368484984,1751190676404,-1338.17,0.00028219,3]
[368484985,1751190676413,-490.0,0.00028219,3]
[368484986,1751190676425,-2735.95,0.00028219,3]
[368484987,1751190676434,-490.0,0.00028219,3]
[368484988,1751190676444,-490.0,0.00028219,3]
[368484989,1751190676455,-5045.19,0.00028219,3]
[368484990,1751190676465,-490.0,0.00028219,3]
[368484991,1751190676474,-732.19,0.00028219,3]
[368484992,1751190676483,-490.0,0.00028219,3]
[368484993,1751190676493,-490.0,0.00028219,3]
[368484994,1751190676502,-1159.62,0.00028219,3]
[368484995,1751190676512,-2798.62,0.00028219,3]
[368484996,1751190676521,-557.27,0.00028219,3]
[368484997,1751190676531,-490.0,0.00028219,3]
[368484998,1751190676539,-1735.18,0.00028219,3]
[368484999,1751190676549,-490.0,0.00028219,3]
[368485000,1751190676558,-490.0,0.00028219,3]
[368485001,1751190676568,-795.99,0.00028219,3]
[368485002,1751190676577,-490.0,0.00028219,3]
[368485003,1751190676587,-490.0,0.00028219,3]
[368485004,1751190676597,-2632.4,0.00028219,3]
[368485005,1751190676607,-890.5,0.00028219,3]
[368485006,1751190676616,-490.0,0.00028219,3]
[368485007,1751190676626,-2676.96,0.00028219,3]
[368485008,1751190676636,-815.43,0.00028219,3]
[368485009,1751190676647,-490.0,0.00028219,3]
[368485010,1751190676658,-564.45,0.00028219,3]
[368485011,1751190676668,-2287.33,0.00028219,3]
[368485012,1751190676678,-490.0,0.00028219,3]
[368485013,1751190676687,-490.0,0.00028219,3]
[368485014,1751190676697,-7199.68,0.00028219,3]
[368485015,1751190676706,-1083.86,0.00028219,3]
[368485016,1751190676716,-1198.65,0.00028219,3]
[368485017,1751190676725,-2504.77,0.00028219,3]
[368485018,1751190676734,-480.57483591,0.00028219,3]
[368485019,1751190676744,-4926.93,0.00028219,3]
[368485020,1751190676753,-2111.85,0.00028219,3]
[368485021,1751190676764,-670.5,0.00028219,3]
[368485022,1751190676774,-9168.68,0.00028219,3]
[368485023,1751190676784,-1466.04,0.00028219,3]
[368485024,1751190676793,-995.99,0.00028219,3]
[368485025,1751190676803,-148479.19,0.00028219,3]
[368485026,1751190676812,-1110.23,0.00028219,3]
[368485027,1751190676821,-884.61,0.00028219,3]
[368485028,1751190676832,-490.0,0.00028219,3]
[368485029,1751190676843,-3927.92,0.00028219,3]
[368485030,1751190676855,-490.0,0.00028219,3]
[368485031,1751190676864,-1262.58,0.00028219,3]
[368485032,1751190676874,-490.0,0.00028219,3]
[368485033,1751190676884,-490.0,0.00028219,3]
[368485034,1751190676894,-151.0,0.00028219,7]
[368485035,1751190677156,-1550.57,0.00028219,3]
[368485036,1751190677169,-490.0,0.00028219,3]
[368485037,1751190677179,-4423.72,0.00028219,3]
[368485038,1751190677188,-393.50345729,0.00028219,3]
[368485039,1751190677197,-799.02,0.00028219,3]
[368485040,1751190677206,-490.0,0.00028219,3]
[368485041,1751190677216,-2359.81,0.00028219,3]
[368485042,1751190677225,-1420.75,0.00028219,3]
[368485043,1751190677234,-490.0,0.00028219,3]
[368485044,1751190677243,-612.29,0.00028219,3]
[368485045,1751190677253,-490.0,0.00028219,3]
[368485046,1751190677261,-2220.09,0.00028219,3]
[368485047,1751190677271,-490.0,0.00028219,3]
[368485048,1751190677281,-490.0,0.00028219,3]
[368485049,1751190677290,-1116.8,0.00028219,3]
[368485050,1751190677300,-490.0,0.00028219,3]
[368485051,1751190677309,-850.38,0.00028219,3]
[368485052,1751190677318,-1635.41,0.00028219,3]
[368485053,1751190677327,-495.37,0.00028219,3]
[368485054,1751190677341,-1906.36,0.00028219,3]
[368485055,1751190677350,-2198.76,0.00028219,3]
[368485056,1751190677360,-1730.15,0.00028219,3]
[368485057,1751190677369,-490.0,0.00028219,3]
[368485058,1751190677379,-490.0,0.00028219,3]
[368485059,1751190677389,-1477.82,0.00028219,3]
[368485060,1751190677399,-590.95,0.00028219,3]
[368485061,1751190677408,-3000.74,0.00028219,3]
[368485062,1751190677418,-924.29,0.00028219,3]
[368485063,1751190677428,-802.0,0.00028219,3]
[368485064,1751190677437,-1537.71,0.00028219,3]
[368485065,1751190677446,-818.08,0.00028219,3]
[368485066,1751190677456,-1894.35,0.00028219,3]
[368485067,1751190677466,-490.0,0.00028219,3]
[368485068,1751190677476,-1565.54,0.00028219,3]
[368485069,1751190677485,-490.0,0.00028219,3]
[368485070,1751190677495,-707.33,0.00028219,3]
[368485071,1751190677504,-150.0,0.00028219,3]
[368485072,1751190677514,-854.62,0.00028219,3]
[368485073,1751190677523,-490.0,0.00028219,3]
[368485074,1751190677532,-2120.63,0.00028219,3]
[368485075,1751190677542,-1990.15,0.00028219,3]
[368485076,1751190677551,-490.0,0.00028219,3]
[368485077,1751190677561,-490.0,0.00028219,3]
[368485078,1751190677570,-203.00116388,0.00028219,3]
[368485079,1751190677580,-490.0,0.00028219,3]
[368485080,1751190677589,-501.24,0.00028219,3]
[368485081,1751190677598,-1303.39,0.00028219,3]
[368485082,1751190677608,-490.0,0.00028219,3]
[368485083,1751190677617,-490.0,0.00028219,3]
[368485084,1751190677627,-490.0,0.00028219,3]
[368485085,1751190677636,-490.0,0.00028219,3]
[368485086,1751190677646,-490.0,0.00028219,3]
[368485087,1751190677655,-2057.83,0.00028219,3]
[368485088,1751190677664,-1078.53,0.00028219,3]
[368485089,1751190677674,-1066.81,0.00028219,3]
[368485090,1751190677683,-829.05,0.00028219,3]
[368485091,1751190677693,-496.85620474,0.00028219,3]
[368485092,1751190677703,-2549.31,0.00028219,3]
[368485093,1751190677712,-490.0,0.00028219,3]
[368485094,1751190677722,-1514.01,0.00028219,3]
[368485095,1751190677732,-490.0,0.00028219,3]
[368485096,1751190677742,-709.69,0.00028219,3]
[368485097,1751190677751,-490.0,0.00028219,3]
[368485098,1751190677760,-490.0,0.00028219,3]
[368485099,1751190677770,-1413.24,0.00028219,3]
[368485100,1751190677779,-1126.76,0.00028219,3]
[368485101,1751190677789,-499.7,0.00028219,3]
[368485102,1751190677798,-1903.95,0.00028219,3]
[368485103,1751190677807,-7138.85,0.00028219,3]
[368485104,1751190677816,-490.0,0.00028219,3]
[368485105,1751190677825,-490.0,0.00028219,3]
[368485106,1751190677835,-1687.9,0.00028219,3]
[368485107,1751190677846,-490.0,0.00028219,3]
[368485108,1751190677856,-490.0,0.00028219,3]
[368485109,1751190677866,-1199.32,0.00028219,3]
[368485110,1751190677876,-605.34,0.00028219,3]
[368485111,1751190677886,-490.0,0.00028219,3]
[368485112,1751190677895,-624.57,0.00028219,3]
[368485113,1751190677904,-1080.18,0.00028219,3]
[368485114,1751190677915,-490.0,0.00028219,3]
[368485115,1751190677925,-1902.03,0.00028219,3]
[368485116,1751190677935,-685.5,0.00028219,3]
[368485117,1751190677944,-490.0,0.00028219,3]
[368485118,1751190677953,-985.04,0.00028219,3]
[368485119,1751190677963,-809.87,0.00028219,3]
[368485120,1751190677973,-2277.33,0.00028219,3]
[368485121,1751190677983,-3579.22,0.00028219,3]
[368485122,1751190677992,-1369.16,0.00028219,3]
[368485123,1751190678003,-490.0,0.00028219,3]
[368485124,1751190678013,-1202.94,0.00028219,3]
[368485125,1751190678022,-490.0,0.00028219,3]
[368485126,1751190678033,-1406.03,0.00028219,3]
[368485127,1751190678043,-490.0,0.00028219,3]
[368485128,1751190678053,-892.36,0.00028219,3]
[368485129,1751190678063,-7389.77,0.00028219,3]
[368485130,1751190678074,-2322.41,0.00028219,3]
[368485131,1751190678084,-490.0,0.00028219,3]
[368485132,1751190678094,-936.2,0.00028219,3]
[368485133,1751190678104,-11425.24,0.00028219,3]
[368485134,1751190678115,-490.0,0.00028219,3]
[368485135,1751190678124,-2363.6,0.00028219,3]
[368485136,1751190678134,-1344.12,0.00028219,3]
[368485137,1751190678144,-490.0,0.00028219,3]
[368485138,1751190678153,-490.0,0.00028219,3]
[368485139,1751190678163,-490.0,0.00028219,3]
[368485140,1751190678173,-182.74573101,0.00028219,3]
[368485141,1751190678183,-490.0,0.00028219,3]
[368485142,1751190678194,-1010.37,0.00028219,3]
[368485143,1751190678204,-3943.02,0.00028219,3]
[368485144,1751190678213,-719.55,0.00028219,3]
[368485145,1751190678223,-2127.37,0.00028219,3]
[368485146,1751190678233,-962.36,0.00028219,3]
[368485147,1751190678242,-490.0,0.00028219,3]
[368485148,1751190678252,-3378.38,0.00028219,3]
[368485149,1751190678262,-1167.04,0.00028219,3]
[368485150,1751190678271,-2325.84,0.00028219,3]
[368485151,1751190678281,-1319.73,0.00028219,3]
[368485152,1751190678290,-2715.66,0.00028219,3]
[368485153,1751190678299,-490.0,0.00028219,3]
[368485154,1751190678309,-509.95,0.00028219,3]
[368485155,1751190678318,-613.68,0.00028219,3]
[368485156,1751190678328,-490.0,0.00028219,3]
[368485157,1751190678341,-490.0,0.00028219,3]
[368485158,1751190678350,-163.98139237,0.00028219,3]
[368485159,1751190678360,-1294.86,0.00028219,3]
[368485160,1751190678369,-1043.95,0.00028219,3]
[368485161,1751190678379,-490.0,0.00028219,3]
[368485162,1751190678389,-1355.41,0.00028219,3]
[368485163,1751190678399,-500.0,0.00028219,3]
[368485164,1751190678408,-2207.5,0.00028219,3]
[368485165,1751190678418,-4741.41,0.00028219,3]
[368485166,1751190678428,-490.0,0.00028219,3]
[368485167,1751190678437,-545.36,0.00028219,3]
[368485168,1751190678447,-490.0,0.00028219,3]
[368485169,1751190678456,-1588.45,0.00028219,3]
[368485170,1751190678466,-490.0,0.00028219,3]
[368485171,1751190678475,-826.61,0.00028219,3]
[368485172,1751190678485,-490.0,0.00028219,3]
[368485173,1751190678494,-344.93872969,0.00028219,3]
[368485174,1751190678505,-3228.0,0.00028219,3]
[368485175,1751190678515,-490.0,0.00028219,3]
[368485176,1751190678525,-490.0,0.00028219,3]
[368485177,1751190678535,-886.06,0.00028219,3]
[368485178,1751190678544,-487.50892152,0.00028219,3]
[368485179,1751190678554,-9205.97,0.00028219,3]
[368485180,1751190678565,-1424.96,0.00028219,3]
[368485181,1751190678574,-1170.72,0.00028219,3]
[368485182,1751190678584,-490.0,0.00028219,3]
[368485183,1751190678594,-2306.21,0.00028219,3]
[368485184,1751190678604,-3412.3,0.00028219,3]
[368485185,1751190678613,-728.26,0.00028219,3]
[368485186,1751190678623,-1625.19,0.00028219,3]
[368485187,1751190678633,-1125.2,0.00028219,3]
[368485188,1751190678643,-490.0,0.00028219,3]
[368485189,1751190678652,-1386.0,0.00028219,3]
[368485190,1751190678662,-736.63,0.00028219,3]
[368485191,1751190678671,-490.0,0.00028219,3]
[368485192,1751190678681,-1000.0,0.00028219,3]
[368485193,1751190678691,-490.0,0.00028219,3]
[368485194,1751190678701,-187.56825177,0.00028219,3]
[368485195,1751190678710,-1530.28,0.00028219,3]
[368485196,1751190678720,-1073.8,0.00028219,3]
[368485197,1751190678729,-2006.57,0.00028219,3]
[368485198,1751190678739,-2126.77,0.00028219,3]
[368485199,1751190678749,-490.0,0.00028219,3]
[368485200,1751190678759,-2091.51,0.00028219,3]
[368485201,1751190678768,-490.0,0.00028219,3]
[368485202,1751190678778,-490.0,0.00028219,3]
[368485203,1751190678788,-1779.52,0.00028219,3]
[368485204,1751190678797,-490.0,0.00028219,3]
[368485205,1751190678806,-490.0,0.00028219,3]
[368485206,1751190678815,-490.0,0.00028219,3]
[368485207,1751190678825,-490.0,0.00028219,3]
[368485208,1751190678835,-1303.39,0.00028219,3]
[368485209,1751190678844,-490.0,0.00028219,3]
[368485210,1751190678853,-1673.45,0.00028219,3]
[368485211,1751190678863,-490.0,0.00028219,3]
[368485212,1751190678872,-776.8,0.00028219,3]
[368485213,1751190678882,-4507.51,0.00028219,3]
[368485214,1751190678892,-2452.49,0.00028219,3]
[368485215,1751190678902,-563.15888871,0.00028219,3]
[368485216,1751190678911,-490.0,0.00028219,3]
[368485217,1751190678921,-490.0,0.00028219,3]
[368485218,1751190678931,-2000.1,0.00028219,3]
[368485219,1751190678940,-490.0,0.00028219,3]
[368485220,1751190678949,-3480.9,0.00028219,3]
[368485221,1751190678959,-1935.08,0.00028219,3]
[368485222,1751190678968,-1632.66,0.00028219,3]
[368485223,1751190678978,-490.0,0.00028219,3]
[368485224,1751190678989,-1569.37,0.00028219,3]
[368485225,1751190678999,-2530.56,0.00028219,3]
[368485226,1751190679009,-490.0,0.00028219,3]
[368485227,1751190679019,-490.0,0.00028219,3]
[368485228,1751190679030,-1489.85,0.00028219,3]
[368485229,1751190679039,-490.0,0.00028219,3]
[368485230,1751190679050,-2419.87,0.00028219,3]
[368485231,1751190679059,-1193.32,0.00028219,3]
[368485232,1751190679069,-490.0,0.00028219,3]
[368485233,1751190679079,-588.25,0.00028219,3]
[368485234,1751190679089,-1993.35,0.00028219,3]
[368485235,1751190679099,-2069.08,0.00028219,3]
[368485236,1751190679109,-3522.67,0.00028219,3]
[368485237,1751190679120,-1690.76,0.00028219,3]
[368485238,1751190679129,-2018.73,0.00028219,3]
[368485239,1751190679139,-2243.02,0.00028219,3]
[368485240,1751190679150,-490.0,0.00028219,3]
[368485241,1751190679160,-490.0,0.00028219,3]
[368485242,1751190679170,-490.0,0.00028219,3]
[368485243,1751190679180,-490.0,0.00028219,3]
[368485244,1751190679190,-1621.16,0.00028219,3]
[368485245,1751190679199,-490.0,0.00028219,3]
[368485246,1751190679209,-2803.72,0.00028219,3]
[368485247,1751190679219,-490.0,0.00028219,3]
[368485248,1751190679228,-490.0,0.00028219,3]
[368485249,1751190679238,-490.0,0.00028219,3]
[368485250,1751190679247,-490.0,0.00028219,3]
[368485251,1751190679257,-490.0,0.00028219,3]
[368485252,1751190679267,-490.0,0.00028219,3]
[368485253,1751190679277,-554.04412934,0.00028219,3]
[368485254,1751190679287,-490.0,0.00028219,3]
[368485255,1751190679297,-490.0,0.00028219,3]
[368485256,1751190679306,-490.0,0.00028219,3]
[368485257,1751190679316,-490.0,0.00028219,3]
[368485258,1751190679326,-1156.58,0.00028219,3]
[368485259,1751190679340,-697.23,0.00028219,3]
[368485260,1751190679350,-490.0,0.00028219,3]
[368485261,1751190679359,-2344.83,0.00028219,3]
[368485262,1751190679370,-490.0,0.00028219,3]
[368485263,1751190679381,-500.0,0.00028219,3]
[368485264,1751190679391,-896.46,0.00028219,3]
[368485265,1751190679408,-1455.99,0.00028219,3]
[368485266,1751190679426,-2317.49,0.00028219,3]
[368485267,1751190679441,-1697.89,0.00028219,3]
[368485268,1751190679457,-490.0,0.00028219,3]
[368485269,1751190679473,-490.0,0.00028219,3]
[368485270,1751190679489,-490.0,0.00028219,3]
[368485271,1751190679503,-2847.6,0.00028219,3]
[368485272,1751190679517,-490.0,0.00028219,3]
[368485273,1751190679533,-150.0,0.00028219,3]
[368485274,1751190679548,-499.82,0.00028219,3]
[368485275,1751190679563,-1196.0,0.00028219,3]
[368485276,1751190679577,-490.0,0.00028219,3]
[368485277,1751190679594,-4069.2,0.00028219,3]
[368485278,1751190679610,-1620.63,0.00028219,3]
[368485279,1751190679624,-24643.72,0.00028219,3]
[368485280,1751190679640,-498.07,0.00028219,3]
[368485281,1751190679657,-3762.98,0.00028219,3]
[368485282,1751190679670,-490.0,0.00028219,3]
[368485283,1751190679683,-1069.72,0.00028219,3]
[368485284,1751190679695,-725.1,0.00028219,3]
[368485285,1751190679714,-4782.64,0.00028219,3]
[368485286,1751190679725,-490.0,0.00028219,3]
[368485287,1751190679738,-1100.83,0.00028219,3]
[368485288,1751190679752,-1824.13,0.00028219,3]
[368485289,1751190679763,-2504.1,0.00028219,3]
[368485290,1751190679777,-490.0,0.00028219,3]
[368485291,1751190679790,-1607.63,0.00028219,3]
[368485292,1751190679803,-490.0,0.00028219,3]
[368485293,1751190679816,-1132.25,0.00028219,3]
[368485294,1751190679830,-11678.75,0.00028219,3]
[368485295,1751190679843,-3607.16,0.00028219,3]
[368485296,1751190679855,-490.0,0.00028219,3]
[368485297,1751190679868,-674.39,0.00028219,3]
[368485298,1751190679881,-2388.21,0.00028219,3]
[368485299,1751190679894,-490.0,0.00028219,3]
[368485300,1751190679906,-632.01,0.00028219,3]
[368485301,1751190679919,-490.0,0.00028219,3]
[368485302,1751190679931,-490.0,0.00028219,3]
[368485303,1751190679944,-490.0,0.00028219,3]
[368485304,1751190679957,-3749.55,0.00028219,3]
[368485305,1751190679969,-2478.96,0.00028219,3]
[368485306,1751190679983,-490.0,0.00028219,3]
[368485307,1751190679996,-536.71,0.00028219,3]
[368485308,1751190680009,-1798.53,0.00028219,3]
[368485309,1751190680022,-1629.68,0.00028219,3]
[368485310,1751190680036,-490.0,0.00028219,3]
[368485311,1751190680048,-3221.5,0.00028219,3]
[368485312,1751190680062,-490.0,0.00028219,3]
[368485313,1751190680075,-490.0,0.00028219,3]
[368485314,1751190680088,-2263.99,0.00028219,3]
[368485315,1751190680101,-1535.71,0.00028219,3]
[368485316,1751190680114,-548.24,0.00028219,3]
[368485317,1751190680127,-1677.32,0.00028219,3]
[368485318,1751190680140,-1322.58,0.00028219,3]
[368485319,1751190680153,-6718.76,0.00028219,3]
[368485320,1751190680166,-490.0,0.00028219,3]
[368485321,1751190680181,-553.18,0.00028219,3]
[368485322,1751190680195,-18559.3,0.00028219,3]
[368485323,1751190680208,-857.93,0.00028219,3]
[368485324,1751190680221,-490.0,0.00028219,3]
[368485325,1751190680234,-987.81,0.00028219,3]
[368485326,1751190680247,-1263.2,0.00028219,3]
[368485327,1751190680262,-490.0,0.00028219,3]
[368485328,1751190680275,-2586.37,0.00028219,3]
[368485329,1751190680287,-1943.16,0.00028219,3]
[368485330,1751190680299,-3862.63,0.00028219,3]
[368485331,1751190680312,-490.0,0.00028219,3]
[368485332,1751190680324,-698.11,0.00028219,3]
[368485333,1751190680340,-826.74,0.00028219,3]
[368485334,1751190680353,-490.0,0.00028219,3]
[368485335,1751190680366,-490.0,0.00028219,3]
[368485336,1751190680380,-490.0,0.00028219,3]
[368485337,1751190680393,-4122.27,0.00028219,3]
[368485338,1751190680406,-490.0,0.00028219,3]
[368485339,1751190680420,-490.0,0.00028219,3]
[368485340,1751190680435,-490.0,0.00028219,3]
[368485341,1751190680447,-4529.09,0.00028219,3]
[368485342,1751190680460,-490.0,0.00028219,3]
[368485343,1751190680471,-490.0,0.00028219,3]
[368485344,1751190680484,-1385.92,0.00028219,3]
[368485345,1751190680496,-490.0,0.00028219,3]
[368485346,1751190680508,-490.0,0.00028219,3]
[368485347,1751190680522,-1552.69,0.00028219,3]
[368485348,1751190680534,-2723.89,0.00028219,3]
[368485349,1751190680546,-620.43,0.00028219,3]
[368485350,1751190680559,-5320.1,0.00028219,3]
[368485351,1751190680571,-2896.25,0.00028219,3]
[368485352,1751190680584,-490.0,0.00028219,3]
[368485353,1751190680596,-1874.39,0.00028219,3]
[368485354,1751190680609,-1307.14,0.00028219,3]
[368485355,1751190680621,-919.31,0.00028219,3]
[368485356,1751190680633,-2347.57,0.00028219,3]
[368485357,1751190680645,-2024.74,0.00028219,3]
[368485358,1751190680658,-490.0,0.00028219,3]
[368485359,1751190680670,-5682.59,0.00028219,3]
[368485360,1751190680683,-490.0,0.00028219,3]
[368485361,1751190680695,-490.0,0.00028219,3]
[368485362,1751190680708,-490.0,0.00028219,3]
[368485363,1751190680720,-490.0,0.00028219,3]
[368485364,1751190680737,-500.0,0.00028219,3]
[368485365,1751190680749,-624.43083907,0.00028219,3]
[368485366,1751190680763,-2104.31,0.00028219,3]
[368485367,1751190680775,-490.0,0.00028219,3]
[368485368,1751190680787,-626.13,0.00028219,3]
[368485369,1751190680800,-1968.64,0.00028219,3]
[368485370,1751190680813,-490.0,0.00028219,3]
[368485371,1751190680825,-2133.2,0.00028219,3]
[368485372,1751190680838,-490.0,0.00028219,3]
[368485373,1751190680850,-490.0,0.00028219,3]
[368485374,1751190680862,-1770.11,0.00028219,3]
[368485375,1751190680879,-490.0,0.00028219,3]
[368485376,1751190680892,-1764.06,0.00028219,3]
[368485377,1751190680905,-490.0,0.00028219,3]
[368485378,1751190680918,-251.34449453,0.00028219,3]
[368485379,1751190680933,-700.52,0.00028219,3]
[368485380,1751190680947,-150.0,0.00028219,3]
[368485381,1751190680961,-490.0,0.00028219,3]
[368485382,1751190680974,-1730.13,0.00028219,3]
[368485383,1751190680988,-2165.68,0.00028219,3]
[368485384,1751190681001,-150.0,0.00028219,3]
[368485385,1751190681013,-513.72,0.00028219,3]
[368485386,1751190681027,-500.0,0.00028219,3]
[368485387,1751190681041,-883.4,0.00028219,3]
[368485388,1751190681054,-1926.75,0.00028219,3]
[368485389,1751190681067,-500.0,0.00028219,3]
[368485390,1751190681080,-5921.12,0.00028219,3]
[368485391,1751190681093,-490.0,0.00028219,3]
[368485392,1751190681105,-453.0,0.00028219,3]
[368485393,1751190681117,-2043.04,0.00028219,3]
[368485394,1751190681130,-490.0,0.00028219,3]
[368485395,1751190681143,-2141.99,0.00028219,3]
[368485396,1751190681156,-490.0,0.00028219,3]
[368485397,1751190681169,-855.58,0.00028219,3]
[368485398,1751190681182,-631.01,0.00028219,3]
[368485399,1751190681196,-696.89,0.00028219,3]
[368485400,1751190681208,-1625.9,0.00028219,3]
[368485401,1751190681221,-3241.41,0.00028219,3]
[368485402,1751190681233,-490.0,0.00028219,3]
[368485403,1751190681246,-3866.16,0.00028219,3]
[368485404,1751190681259,-2087.25,0.00028219,3]
[368485405,1751190681271,-4543.11,0.00028219,3]
[368485406,1751190681284,-569.82,0.00028219,3]
[368485407,1751190681303,-1891.34,0.00028219,3]
[368485408,1751190681315,-490.0,0.00028219,3]
[368485409,1751190681329,-1931.12,0.00028219,3]
[368485410,1751190681343,-490.0,0.00028219,3]
[368485411,1751190681356,-490.0,0.00028219,3]
[368485412,1751190681368,-490.0,0.00028219,3]
[368485413,1751190681382,-500.0,0.00028219,3]
[368485414,1751190681395,-490.0,0.00028219,2]
[368485415,1751190681407,-490.0,0.00028219,3]
[368485416,1751190681420,-490.0,0.00028219,3]
[368485417,1751190681432,-1948.57,0.00028219,3]
[368485418,1751190681449,-1323.16,0.00028219,3]
[368485419,1751190681462,-6890.33,0.00028219,3]
[368485420,1751190681475,-971.22,0.00028219,3]
[368485421,1751190681486,-1740.09,0.00028219,3]